Workbook

Sheet титул
B2: Согласовано | L2: Утверждаю
B3: Начальник управления образования | L3: Директор школы
B5: _____________________ Р.Н. Хузин | L5: _________________Шумакова И.Ф.
A10: Комплектование
A11: на 2021-22 учебный год
A12: Муниципального бюджетного общеобразовательного учреждения города Набережные Челны
A13: "Средняя общеобразовательная школа №8 "
B29: Согласовано | D29: Л.В.Золотарева
D30: С.Р.Мулюкова

Sheet компл кл
A2: Комплектование классов на 2020-2021 учебный год (на 1 сентября 2020 года)
A3: по учреждению МБОУ "Средняя общеобразовательная школа №8"
A5: Класс | B5: Количество обучающихся всего | D5: в том числе по программам обучения | N5: в том числе количество учеников на домашнем обучении | P5: язык обучения
D6: Общеобразовательные | F6: Естественно-научные | H6: Гуманитарные | J6: Технические | L6: Социально-экономические
B7: 2020-21 | C7: 2021-22 | D7: 2020-21 | E7: 2021-22 | F7: 2020-21 | G7: 2021-22 | H7: 2020-21 | I7: 2021-22 | J7: 2020-21 | K7: 2021-22 | L7: 2020-21 | M7: 2021-22 | N7: 2020-21 | O7: 2021-22 | P7: 2021-22
A8: 1а | B8: 32 | C8: 32 | D8: 32 | E8: 32 | F8: 0 | G8: 0 | H8: 0 | I8: 0 | J8: 0 | K8: 0 | L8: 0 | M8: 0 | N8: 1 | O8: 0 | P8: рус
A9: 1б | B9: 32 | C9: 33 | D9: 32 | E9: 33 | F9: 0 | G9: 0 | H9: 0 | I9: 0 | J9: 0 | K9: 0 | L9: 0 | M9: 0 | N9: 0 | O9: 0 | P9: рус
A10: 1в | B10: 32 | C10: 33 | D10: 32 | E10: 33 | F10: 0 | G10: 0 | H10: 0 | I10: 0 | J10: 0 | K10: 0 | L10: 0 | M10: 0 | N10: 0 | O10: 0 | P10: рус
A12: итого по 1 классам | B12: =SUM(B8:B11) -> 96 | C12: 98 | D12: =SUM(D8:D11) -> 96 | E12: 98 | F12: 0 | G12: 0 | H12: =H8+H9+H10+H11 -> 0 | I12: 0 | J12: 0 | K12: 0 | L12: 0 | M12: 0 | N12: 1 | O12: 0 | P12: рус
A13: 2а | B13: 30 | C13: 25 | D13: 30 | E13: 25 | F13: 0 | G13: 0 | H13: 0 | I13: 0 | J13: 0 | K13: 0 | L13: 0 | M13: 0 | N13: 0 | O13: 0 | P13: рус
A14: 2б | B14: 32 | C14: 26 | D14: 32 | E14: 26 | F14: 0 | G14: 0 | H14: 0 | I14: 0 | J14: 0 | K14: 0 | L14: 0 | M14: 0 | N14: 0 | O14: 0 | P14: рус
A15: 2в | B15: 27 | C15: 28 | D15: 27 | E15: 28 | F15: 0 | G15: 0 | H15: 0 | I15: 0 | J15: 0 | K15: 0 | L15: 0 | M15: 0 | N15: 0 | O15: 0 | P15: рус
A16: итого по 2 классам | B16: 89 | C16: 79 | D16: 89 | E16: 79 | F16: 0 | G16: 0 | H16: =H13+H14+H15 -> 0 | I16: =I13+I14+I15 -> 0 | J16: 0 | K16: 0 | L16: 0 | M16: 0 | N16: =N13+N14+N15 -> 0 | O16: 0 | P16: рус
A17: 3а | B17: 26 | C17: 32 | D17: 26 | E17: 32 | F17: 0 | G17: 0 | H17: 0 | I17: 0 | J17: 0 | K17: 0 | L17: 0 | M17: 0 | N17: 0 | O17: 0 | P17: рус
A18: 3б | B18: 27 | C18: 33 | D18: 27 | E18: 33 | F18: 0 | G18: 0 | H18: 0 | I18: 0 | J18: 0 | K18: 0 | L18: 0 | M18: 0 | N18: 0 | O18: 0 | P18: рус
A19: 3в | B19: 28 | C19: 33 | D19: 28 | E19: 33 | F19: 0 | G19: 0 | H19: 0 | I19: 0 | J19: 0 | K19: 0 | L19: 0 | M19: 0 | N19: 0 | O19: 0 | P19: рус
A20: итого по 3 классам | B20: 81 | C20: 98 | D20: 81 | E20: 98 | F20: 0 | G20: 0 | H20: =H17+H18+H19 -> 0 | I20: =I17+I18+I19 -> 0 | J20: 0 | K20: 0 | L20: 0 | M20: 0 | N20: =N17+N18+N19 -> 0 | O20: 0 | P20: рус
A21: 4а | B21: 28 | C21: 25 | D21: 28 | E21: 25 | F21: 0 | G21: 0 | H21: 0 | I21: 0 | J21: 0 | K21: 0 | L21: 0 | M21: 0 | N21: 0 | O21: 0 | P21: рус
A22: 4б | B22: 27 | C22: 25 | D22: 27 | E22: 25 | F22: 0 | G22: 0 | H22: 0 | I22: 0 | J22: 0 | K22: 0 | L22: 0 | M22: 0 | N22: 0 | O22: 0 | P22: рус
A23: 4в | B23: 27 | C23: 19 | D23: 27 | E23: 19 | F23: 0 | G23: 0 | H23: 0 | I23: 0 | J23: 0 | K23: 0 | L23: 0 | M23: 0 | N23: 0 | O23: 0 | P23: рус
A24: итого по 4 классам | B24: 82 | C24: 69 | D24: 82 | E24: 69 | F24: 0 | G24: 0 | H24: =H21+H22+H23 -> 0 | I24: =I21+I22+I23 -> 0 | J24: 0 | K24: 0 | L24: 0 | M24: 0 | N24: =N21+N22+N23 -> 0 | O24: 0 | P24: рус
A25: 5а | B25: 25 | C25: 25 | D25: 25 | E25: 25 | F25: 0 | G25: 0 | H25: 0 | I25: 0 | J25: 0 | K25: 0 | L25: 0 | M25: 0 | N25: 0 | O25: 0 | P25: рус
A26: 5б | B26: 25 | C26: 23 | D26: 25 | E26: 23 | F26: 0 | G26: 0 | H26: 0 | I26: 0 | J26: 0 | K26: 0 | L26: 0 | M26: 0 | N26: 0 | O26: 0 | P26: рус
A27: 5в | B27: 26 | C27: 17 | D27: 26 | E27: 17 | F27: 0 | G27: 0 | H27: 0 | I27: 0 | J27: 0 | K27: 0 | L27: 0 | M27: 0 | N27: 0 | O27: 0 | P27: рус
A28: итого по 5 классам | B28: 76 | C28: 65 | D28: 76 | E28: 65 | F28: 0 | G28: 0 | H28: =H25+H26+H27 -> 0 | I28: =I25+I26+I27 -> 0 | J28: 0 | K28: 0 | L28: 0 | M28: 0 | N28: =N25+N26+N27 -> 0 | O28: 0 | P28: рус
A29: 6а | B29: 28 | C29: 21 | D29: 28 | E29: 21 | F29: 0 | G29: 0 | H29: 0 | I29: 0 | J29: 0 | K29: 0 | L29: 0 | M29: 0 | N29: 0 | O29: 0 | P29: рус
A30: 6б | B30: 23 | C30: 25 | D30: 23 | E30: 25 | F30: 0 | G30: 0 | H30: 0 | I30: 0 | J30: 0 | K30: 0 | L30: 0 | M30: 0 | N30: 0 | O30: 0 | P30: рус
A31: 6в | B31: 25 | C31: 25 | D31: 25 | E31: 25 | F31: 0 | G31: 0 | H31: 0 | I31: 0 | J31: 0 | K31: 0 | L31: 0 | M31: 0 | N31: 0 | O31: 0 | P31: рус
A32: итого по 6 классам | B32: 76 | C32: 71 | D32: 76 | E32: 71 | F32: 0 | G32: 0 | H32: =H29+H30+H31 -> 0 | I32: =I29+I30+I31 -> 0 | J32: 0 | K32: 0 | L32: 0 | M32: 0 | N32: =N29+N30+N31 -> 0 | O32: 0 | P32: рус
A33: 7а | B33: 26 | C33: 26 | D33: 26 | E33: 26 | F33: 0 | G33: 0 | H33: 0 | I33: 0 | J33: 0 | K33: 0 | L33: 0 | M33: 0 | N33: 0 | O33: 0 | P33: рус
A34: 7б | B34: 29 | C34: 22 | D34: 29 | E34: 22 | F34: 0 | G34: 0 | H34: 0 | I34: 0 | J34: 0 | K34: 0 | L34: 0 | M34: 0 | N34: 0 | O34: 0 | P34: рус
A35: 7в | B35: 22 | C35: 24 | D35: 22 | E35: 24 | F35: 0 | G35: 0 | H35: 0 | I35: 0 | J35: 0 | K35: 0 | L35: 0 | M35: 0 | N35: 0 | O35: 0 | P35: рус
A37: итого по 7 классам | B37: 77 | C37: 72 | D37: 77 | E37: 72 | F37: 0 | G37: 0 | H37: =H33+H34+H35+H36 -> 0 | I37: 0 | J37: 0 | K37: 0 | L37: 0 | M37: 0 | N37: 0 | O37: 0 | P37: рус
A38: 8а | B38: 16 | C38: 25 | D38: 16 | E38: 25 | F38: 0 | G38: 0 | H38: 0 | I38: 0 | J38: 0 | K38: 0 | L38: 0 | M38: 0 | N38: 0 | O38: 0 | P38: рус
A39: 8б | B39: 21 | C39: 28 | D39: 21 | E39: 28 | F39: 0 | G39: 0 | H39: 0 | I39: 0 | J39: 0 | K39: 0 | L39: 0 | M39: 0 | N39: 0 | O39: 0
A40: 8в | B40: 19 | C40: 25 | D40: 19 | E40: 25 | F40: 0 | G40: 0 | H40: 0 | I40: 0 | J40: 0 | K40: 0 | L40: 0 | M40: 0 | N40: 1 | O40: 0 | P40: рус
A43: итого по 8 классам | B43: =SUM(B38:B42) -> 56 | C43: 78 | D43: =SUM(D38:D42) -> 56 | E43: 78 | F43: 0 | G43: 0 | H43: =H38+H40+H41+H42 -> 0 | I43: 0 | J43: 0 | K43: 0 | L43: 0 | M43: 0 | N43: 1 | O43: 0 | P43: рус
A44: 9а | B44: 26 | C44: 16 | D44: 26 | E44: 16 | F44: 0 | G44: 0 | H44: 0 | I44: 0 | J44: 0 | K44: 0 | L44: 0 | M44: 0 | N44: 1 | O44: 0 | P44: рус
A45: 9б | B45: 19 | C45: 19 | D45: 19 | E45: 19 | F45: 0 | G45: 0 | H45: 0 | I45: 0 | J45: 0 | K45: 0 | L45: 0 | M45: 0 | N45: 0 | O45: 0 | P45: рус
A46: 9 в | C46: 19 | E46: 19 | O46: 1
A48: итого по 9 классам | B48: =SUM(B44:B47) -> 45 | C48: 54 | D48: =SUM(D44:D47) -> 45 | E48: 54 | F48: 0 | G48: 0 | H48: =H44+H45+H46+H47 -> 0 | I48: 0 | J48: 0 | K48: 0 | L48: 0 | M48: 0 | N48: 1 | O48: 1 | P48: рус
A49: 10а | B49: 27 | C49: 26 | F49: 27 | G49: 26 | H49: 0 | I49: 0 | J49: 0 | K49: 0 | L49: 0 | M49: 0 | O49: 0 | P49: рус
A51: итого по 10 классам | B51: 27 | C51: 26 | F51: 27 | G51: 26 | H51: =H49+H50 -> 0 | I51: 0 | J51: 0 | K51: 0 | L51: 0 | M51: 0 | N51: 0 | O51: 0 | P51: рус
A52: 11а | B52: 24 | C52: 27 | F52: 24 | G52: 27 | H52: 0 | I52: 0 | J52: 0 | K52: 0 | L52: 0 | M52: 0 | N52: 2 | O52: 0 | P52: рус
A54: итого по 11 классам | B54: 24 | C54: 27 | F54: 24 | G54: 27 | H54: =H52+H53 -> 0 | I54: 0 | J54: 0 | K54: 0 | L54: 0 | M54: 0 | N54: 2 | O54: 0 | P54: рус
A55: итого по 1-11 классам | B55: 729 | C55: 737 | D55: 677 | E55: 684 | F55: 51 | G55: 53 | H55: =H12+H16+H20+H24+H28+H32+H37+H43+H48+H51+H54 -> 0 | I55: 0 | J55: 0 | K55: 0 | L55: 0 | M55: 0 | N55: 5 | O55: 2 | P55: рус
B58: Директор МБОУ "СОШ №8" | H58: И.Ф. Шумакова

Sheet свод
A2: Комплектование классов на 2021-2022 учебный год (на 1 сентября 2021 года)
A3: по учреждению МБОУ "Средняя общеобразовательная школа №8 "
A5: Паралель | B5: комплектование классов | H5: комплектование групп дополнительного образования (кружковая работа) | N5: комплектование групп продленного дня
B6: кол-во классов | D6: кол-во уч-ся | F6: наполняемость | H6: кол-во групп | J6: кол-во уч-ся | L6: наполняемость | N6: кол-во групп | P6: кол-во уч-ся | R6: наполняемость
B7: 2020-21 | C7: 2020-21 | D7: 2020-21 | E7: 2021-22 | F7: 2020-21 | G7: 2021-22 | H7: 2020-21 | I7: 2021-22 | J7: 2020-21 | K7: 2021-22 | L7: 2020-21 | M7: 2021-22 | N7: 2020-21 | O7: 2021-22 | P7: 2020-21 | Q7: 2021-22 | R7: 2020-21 | S7: 2021-22
A8: 1 | B8: 3 | C8: 3 | D8: 96 | E8: 98 | F8: =D8/B8 -> 32.0 | G8: 32.6 | H8: 5 | I8: 5 | J8: 100 | K8: 100 | L8: 20 | M8: 20 | N8: 3 | O8: 3 | P8: 75 | Q8: 75 | R8: =P8/N8 -> 25 | S8: =Q8/O8 -> 25
A9: 2 | B9: 3 | C9: 3 | D9: 89 | E9: 79 | F9: =D9/B9 -> 29.7 | G9: 26.3 | H9: 2 | I9: 2 | J9: 40 | K9: 40 | L9: 20 | M9: 20 | N9: 2 | O9: 2 | P9: 50 | Q9: 50 | R9: 25 | S9: 25
A10: 3 | B10: 3 | C10: 3 | D10: 81 | E10: 98 | F10: 27.0 | G10: 32.6 | H10: 5 | I10: 5 | J10: 100 | K10: 100 | L10: 20 | M10: 20 | N10: 2 | O10: 2 | P10: 50 | Q10: 50 | R10: 25 | S10: 25
A11: 4 | B11: 3 | C11: 3 | D11: 82 | E11: 69 | F11: 27.3 | G11: 23.0 | H11: 7 | I11: 7 | J11: 140 | K11: 140 | L11: 20 | M11: 20 | N11: 2 | O11: 2 | P11: 50 | Q11: 50 | R11: 25 | S11: 25
A12: 1-4 классы | B12: 12 | C12: 12 | D12: 348 | E12: 344 | F12: 29.0 | G12: 28.6 | H12: 19 | I12: 19 | J12: 380 | K12: 380 | L12: 20 | M12: 20 | N12: =N8+N9+N10+N11 -> 9 | O12: 9 | P12: 225 | Q12: 225 | R12: =P12/N12 -> 25 | S12: 25
A13: 5 | B13: 3 | C13: 3 | D13: 76 | E13: 65 | F13: 25.3 | G13: 21.6 | H13: 4 | I13: 4 | J13: 80 | K13: 80 | L13: 20 | M13: 20 | N13: 0 | O13: 0 | P13: 0 | Q13: 0 | R13: 0 | S13: 0
A14: 6 | B14: 3 | C14: 3 | D14: 76 | E14: 71 | F14: 25.3 | G14: 23.6 | H14: 1 | I14: 1 | J14: 20 | K14: 20 | L14: 20 | M14: 20 | N14: 0 | O14: 0 | P14: 0 | Q14: 0 | R14: 0 | S14: 0
A15: 7 | B15: 3 | C15: 3 | D15: 77 | E15: 72 | F15: 25.7 | G15: 24.0 | H15: 5 | I15: 5 | J15: 100 | K15: 100 | L15: 20 | M15: 20 | N15: 0 | O15: 0 | P15: 0 | Q15: 0 | R15: 0 | S15: 0
A16: 8 | B16: 3 | C16: 3 | D16: 56 | E16: 78 | F16: 18.7 | G16: 26.0 | H16: 3 | I16: 3 | J16: 60 | K16: 60 | L16: 20 | M16: 20 | N16: 0 | O16: 0 | P16: 0 | Q16: 0 | R16: 0 | S16: 0
A17: 9 | B17: 2 | C17: 3 | D17: 45 | E17: 54 | F17: 22.5 | G17: 18.0 | H17: 3 | I17: 3 | J17: 60 | K17: 60 | L17: 20.0 | M17: 20.0 | N17: 0 | O17: 0 | P17: 0 | Q17: 0 | R17: 0 | S17: 0
A18: 5-9 классы | B18: 14 | C18: 15 | D18: 330 | E18: 340 | F18: 23.6 | G18: 22.6 | H18: 16 | I18: 16 | J18: =J13+J14+J15+J16+J17 -> 320 | K18: 320 | L18: 20.0 | M18: 20.0 | N18: =N13+N14+N15+N16+N17 -> 0 | O18: =O13+O14+O15+O16+O17 -> 0 | P18: =P13+P14+P15+P16+P17 -> 0 | Q18: 0 | R18: =R13+R14+R15+R16+R17 -> 0 | S18: 0
A19: 10 | B19: 1 | C19: 1 | D19: 27 | E19: 26 | F19: 27.0 | G19: 26.0 | H19: 2 | I19: 2 | J19: 40 | K19: 40 | L19: 20.0 | M19: 20.0 | N19: 0 | O19: 0 | P19: 0 | Q19: 0 | R19: 0 | S19: 0
A20: 11 | B20: 1 | C20: 1 | D20: 24 | E20: 27 | F20: 24.0 | G20: 27.0 | H20: 1 | I20: 1 | J20: 20 | K20: 20 | L20: 20.0 | M20: 20.0 | N20: 0 | O20: 0 | P20: 0 | Q20: 0 | R20: 0 | S20: 0
A21: 10-11 классы | B21: 2 | C21: 2 | D21: 51 | E21: 53 | F21: 25.5 | G21: 26.5 | H21: 3 | I21: 3 | J21: =J19+J20 -> 60 | K21: 60 | L21: 20.0 | M21: 20.0 | N21: =N19+N20 -> 0 | O21: =O19+O20 -> 0 | P21: =P19+P20 -> 0 | Q21: 0 | R21: =R19+R20 -> 0 | S21: 0
A22: 1-11 классы | B22: 28 | C22: 29 | D22: 729 | E22: 737 | F22: 25.6 | G22: 25.4 | H22: =H12+H18+H21 -> 38 | I22: =I12+I18+I21 -> 38 | J22: =J12+J18+J21 -> 760 | K22: 760 | L22: 20.0 | M22: 20.0 | N22: =N12+N18+N21 -> 9 | O22: =O12+O18+O21 -> 9 | P22: =P12+P18+P21 -> 225 | Q22: 225 | R22: =R12+R18+R21 -> 25 | S22: 25
B27: Директор МБОУ "СОШ №8" И.Ф. Шумакова

Sheet родн яз
A2: Комплектование групп родного языка
A3: по учреждению МБОУ "Средняя общеобразовательная школа № 8"
A5: Паралель | B5: родной язык (татарский) | F5: родной язык (русский) | J5: Итого
B6: кол-во уч-ся | C6: кол-во групп | D6: кол-во часов | E6: средняя наполняемость | F6: кол-во уч-ся | G6: кол-во групп | H6: кол-во часов | I6: средняя наполняемость | J6: кол-во уч-ся | K6: кол-во групп | L6: кол-во часов
A7: 1 | B7: 70 | C7: 5 | D7: 15 | E7: 14.0 | F7: 20 | G7: 1 | H7: 3 | I7: 20 | J7: 90 | K7: 6 | L7: 18
A8: 2 | B8: 63 | C8: 5 | D8: 15 | E8: 13.0 | F8: 20 | G8: 1 | H8: 3 | I8: 23 | J8: 83 | K8: 6 | L8: 18
A9: 3 | B9: 69 | C9: 4 | D9: 12 | E9: 17.3 | F9: 26 | G9: 2 | H9: 6 | I9: 13 | J9: 95 | K9: 6 | L9: 18
A10: 4 | B10: 73 | C10: 5 | D10: 15 | E10: 14.6 | F10: 0 | G10: 0 | H10: 0 | J10: 73 | K10: 5 | L10: 15
A11: 1-4 классы | B11: =B7+B8+B9+B10 -> 275 | C11: =C7+C8+C9+C10 -> 19 | D11: 57 | E11: =B11/C11 -> 14.5 | F11: =F7+F8+F9+F10 -> 66 | G11: =G7+G8+G9+G10 -> 4 | H11: =H7+H8+H9+H10 -> 12 | I11: =F11/G11 -> 16.5 | J11: 341 | K11: 23 | L11: 69
A12: 5 | B12: 55 | C12: 4 | D12: 12 | E12: 13.8 | F12: 20 | G12: 1 | H12: 3 | I12: 20.0 | J12: 75 | K12: 5 | L12: 15
A13: 6 | B13: 27 | C13: 3 | D13: 9 | E13: 9.0 | F13: 50 | G13: 3 | H13: 9 | I13: 16.7 | J13: 77 | K13: 6 | L13: 18
A14: 7 | B14: 31 | C14: 3 | D14: 9 | E14: 10.3 | F14: 40 | G14: 3 | H14: 9 | I14: 13.3 | J14: 71 | K14: 6 | L14: 18
A15: 8 | B15: 37 | C15: 3 | D15: 9 | E15: 12.3 | F15: 38 | G15: 2 | H15: 6 | I15: 19.0 | J15: 75 | K15: 5 | L15: 15
A16: 9 | B16: 29 | C16: 3 | D16: 9 | E16: 9.6 | F16: 24 | G16: 2 | H16: 6 | I16: 12.0 | J16: 53 | K16: 5 | L16: 15
A17: 5-9 классы | B17: =B12+B13+B14+B15+B16 -> 179 | C17: =C12+C13+C14+C15+C16 -> 16 | D17: 48 | E17: 11.2 | F17: =F12+F13+F14+F15+F16 -> 172 | G17: =G12+G13+G14+G15+G16 -> 11 | H17: =H12+H13+H14+H15+H16 -> 33 | I17: 15.6 | J17: 351 | K17: 27 | L17: 81
A18: 10 | B18: 0 | C18: 0 | D18: 0 | E18: 0.0 | F18: 25 | G18: 1 | H18: 1 | I18: 27.0 | J18: 25 | K18: 1 | L18: 1
A19: 11 | B19: 0 | C19: 0 | D19: 0 | E19: 0.0 | F19: 28 | G19: 1 | H19: 1 | I19: 28.0 | J19: 28 | K19: 1 | L19: 1
A20: 10-11 классы | B20: =B18+B19 -> 0 | C20: =C18+C19 -> 0 | D20: 0 | E20: 0.0 | F20: =F18+F19 -> 53 | G20: =G18+G19 -> 2 | H20: =H18+H19 -> 2 | I20: 26.5 | J20: 53 | K20: 2 | L20: 2
A21: 1-11 классы | B21: =B11+B17+B20 -> 454 | C21: =C11+C17+C20 -> 35 | D21: 105 | E21: 13.0 | F21: 291.00 | G21: 17 | H21: 47 | I21: 17.1 | J21: 745 | K21: 52 | L21: 152
B24: Директор | C24: МБОУ "СОШ № 8" | F24: _________________ | I24: И.Ф. Шумакова

Sheet кружки
A2: Распределение часов дополнительного образования на 2021-22 учебный год
A4: Паралель | B4: комплектование групп дополнительного образования (кружковая работа) | E4: в том числе по направлениям
E5: техническое | G5: художественно-эстетическое | I5: военно-патриотическое | K5: социально-педагогическое, социально-экономическое | M5: естественно научное | O5: физкультурно спортивное | Q5: эколого-биологическое | S5: туристически краеведческое
B6: кол-во групп | C6: кол-во уч-ся | D6: наполняемость | E6: кол-во групп | F6: кол-во уч-ся | G6: кол-во групп | H6: кол-во уч-ся | I6: кол-во групп | J6: кол-во уч-ся | K6: кол-во групп | L6: кол-во уч-ся | M6: кол-во групп | N6: кол-во уч-ся | O6: кол-во групп | P6: кол-во уч-ся | Q6: кол-во групп | R6: кол-во уч-ся | S6: кол-во групп | T6: кол-во уч-ся
A7: 1 | B7: 5 | C7: 100 | D7: =C7/B7 -> 20 | E7: 1 | F7: 20 | G7: 0 | H7: 0 | I7: 0 | J7: 0 | K7: 1 | L7: 20 | M7: 3 | N7: 60 | O7: 0 | P7: 0 | Q7: 0 | R7: 0 | S7: 0 | T7: 0
A8: 2 | B8: 2 | C8: 40 | D8: 20 | E8: 1 | F8: 20 | G8: 1 | H8: 20 | I8: 0 | J8: 0 | K8: 0 | L8: 0 | M8: 0 | N8: 0 | O8: 0 | P8: 0 | Q8: 0 | R8: 0 | S8: 0 | T8: 0
A9: 3 | B9: 5 | C9: 100 | D9: 20 | E9: 1 | F9: 20 | G9: 3 | H9: 60 | I9: 0 | J9: 0 | K9: 1 | L9: 20 | M9: 0 | N9: 0 | O9: 0 | P9: 0 | Q9: 0 | R9: 0 | S9: 0 | T9: 0
A10: 4 | B10: 7 | C10: 140 | D10: 20 | E10: 1 | F10: 20 | G10: 1 | H10: 20 | I10: 3 | J10: 60 | K10: 1 | L10: 20 | M10: 0 | N10: 0 | O10: 0 | P10: 0 | Q10: 1 | R10: 20 | S10: 0 | T10: 0
A11: 1-4 классы | B11: =B7+B8+B9+B10 -> 19 | C11: 380 | D11: 20 | E11: =E7+E8+E9+E10 -> 4 | F11: =F7+F8+F9+F10 -> 80 | G11: 5 | H11: 100 | I11: 3 | J11: 60 | K11: 3 | L11: 60 | M11: 0 | N11: 0 | O11: 0 | P11: 0 | Q11: 1 | R11: 20 | S11: 0 | T11: 0
A12: 5 | B12: 4 | C12: 80 | D12: 20 | E12: 2 | F12: 40 | G12: 0 | H12: 0 | I12: 0 | J12: 0 | K12: 2 | L12: 40 | M12: 0 | N12: 0 | O12: 0 | P12: 0 | Q12: 0 | R12: 0 | S12: 0 | T12: 0
A13: 6 | B13: 1 | C13: 20 | D13: 20 | E13: 0 | F13: 0 | G13: 0 | H13: 0 | I13: 0 | J13: 0 | K13: 1 | L13: 20 | M13: 0 | N13: 0 | O13: 0 | P13: 0 | Q13: 0 | R13: 0 | S13: 0 | T13: 0
A14: 7 | B14: 5 | C14: 100 | D14: 20 | E14: 0 | F14: 0 | G14: 0 | H14: 0 | I14: 0 | J14: 0 | K14: 4 | L14: 80 | M14: 0 | N14: 0 | O14: 1 | P14: 20 | Q14: 0 | R14: 0 | S14: 0 | T14: 0
A15: 8 | B15: 3 | C15: 60 | D15: 20 | E15: 0 | F15: 0 | G15: 0 | H15: 0 | I15: 0 | J15: 0 | K15: 2 | L15: 40 | M15: 0 | N15: 0 | O15: 1 | P15: 20 | Q15: 0 | R15: 0 | S15: 0 | T15: 0
A16: 9 | B16: 3 | C16: 60 | D16: 20.0 | E16: 0 | F16: 0 | G16: 0 | H16: 0 | I16: 1 | J16: 20 | K16: 1 | L16: 20 | M16: 1 | N16: 20 | O16: 0 | P16: 0 | Q16: 0 | R16: 0 | S16: 0 | T16: 0
A17: 5-9 классы | B17: =B12+B13+B14+B15+B16 -> 16 | C17: 320 | D17: 20.0 | E17: =E12+E13+E14+E15+E16 -> 2 | F17: =F12+F13+F14+F15+F16 -> 40 | G17: 0 | H17: 0 | I17: 1 | J17: 20 | K17: 10 | L17: 200 | M17: 1 | N17: 20 | O17: 2 | P17: 40 | Q17: 0 | R17: 0 | S17: 0 | T17: 0
A18: 10 | B18: =E18+G18+I18+K18+M18+O18+Q18+S18 -> 2 | C18: 40 | D18: 20 | E18: 0 | F18: 0 | G18: 0 | H18: 0 | I18: 0 | J18: 0 | K18: 1 | L18: 20 | M18: 0 | N18: 0 | O18: 0 | P18: 0 | Q18: 1 | R18: 20 | S18: 0 | T18: 0
A19: 11 | B19: 1 | C19: 20 | D19: 20 | E19: 0 | F19: 0 | G19: 0 | H19: 0 | I19: 0 | J19: 0 | K19: 0 | L19: 0 | M19: 1 | N19: 20 | O19: 0 | P19: 0 | Q19: 0 | R19: 0 | S19: 0 | T19: 0
A20: 10-11 классы | B20: =B18+B19 -> 3 | C20: 60 | D20: =C20/B20 -> 20 | E20: =E18+E19 -> 0 | F20: =F18+F19 -> 0 | G20: 0 | H20: 0 | I20: 0 | J20: 0 | K20: 1 | L20: 20 | M20: 1 | N20: 20 | O20: 0 | P20: 0 | Q20: 1 | R20: 20 | S20: 0 | T20: 0
A21: 1-11 классы | B21: =B11+B17+B20 -> 38 | C21: 760 | D21: 20.0 | E21: =E11+E17+E20 -> 6 | F21: =F11+F17+F20 -> 120 | G21: 5 | H21: 100 | I21: 4 | J21: 80 | K21: 14 | L21: 280 | M21: 2 | N21: 40 | O21: 2 | P21: 40 | Q21: 2 | R21: 40 | S21: 0 | T21: 0
B24: Директор МБОУ "СОШ №8" И.Ф. Шумакова

Sheet часы внеуроч
A2: Информация о часах внеурочной работы на 2021-2022 учебный год
A4: Класс | B4: Кол-во часов | C4: Наименование кружка | D4: Направление | E4: Ф.И.О.педагога | F4: Основное место работы | G4: Образование | H4: Должность
A5: 1-4 | B5: 4 | C5: Техническое моделирование "Конструируем сами" | D5: техническое | E5: Асадова Г.И. | F5: МАОУ ДОД ЦДТТ № 5 | G5: высшее педагогическое | H5: педагог дополнительного образования
A6: 4 | B6: 2 | C6: Зеленая эстафета | D6: эколого- биологическое | E6: Айвазьянц К.В. | F6: МБОУ "СОШ № 8" | G6: высшее педагогическое | H6: учитель географии
A7: 3 | B7: 4 | C7: Хоровой кружок | D7: художественно - эстетическое | E7: Краснова Н.Г. | F7: МБОУ "СОШ № 8" | G7: высшее педагогическое | H7: учитель музыки
A8: 1 | B8: 2 | C8: Семьеведение | D8: социально педагогическое | E8: Назарова Т.А. | F8: МБОУ "СОШ № 8" | G8: высшее педагогическое | H8: учитель начальных классов
A9: 1 | B9: 3 | C9: Веселый английский | D9: естественно научное | E9: Камынина М.Н. | F9: МБОУ "СОШ № 8" | G9: высшее педагогическое | H9: учитель английского языка
A10: 4 | B10: 2 | C10: Тимуровская программа "Пчелки" | D10: социально педагогическое | E10: Лобановская Н.В. | F10: МБОУ "СОШ № 8" | G10: высшее педагогическое | H10: учитель начальных классов
A11: 7 | B11: 2 | C11: Золотое перо (школьная газета) | D11: социально педагогическое | E11: Михайленко С.В. | F11: МБОУ "СОШ № 8" | G11: высшее педагогическое | H11: учитель начальных классов
A12: 4 | B12: 6 | C12: ШАГ: школа активного гражданина (музей) | D12: военно - патриотическое | E12: Кузьмина О.В. | F12: МБОУ "СОШ № 8" | G12: высшее педагогическое | H12: учитель истории
A13: 5-9 | B13: 4 | C13: Школа успешного ученика (ШСУ) | D13: социально педагогическое | E13: Габдрахманова О.Е. | F13: МБОУ "СОШ № 8" | G13: высшее педагогическое | H13: учитель начальных классов
A14: 3 | B14: 2 | C14: Программа "Безопасное колесо" по ПДД | D14: социально педагогическое | E14: Сайфутдинова Д.И. | F14: МБОУ "СОШ № 8" | G14: высшее педагогическое | H14: учитель начльных классов
A15: 3 | B15: 2 | C15: Хореографическая студия "Школа танца" | D15: художественно - эстетическое | E15: Сайфутдинова Д.И. | F15: МБОУ "СОШ № 8" | G15: высшее педагогическое | H15: учитель начальных классов
A16: 2-4 | B16: 4 | C16: Театральная студия "Однако" | D16: художественно - эстетическое | E16: Колесникова Т.В. | F16: МБОУ "СОШ № 8" | G16: высшее педагогическое | H16: педагог- организатор
A17: 9 | B17: 2 | C17: Юнармейцы | D17: военно - патриотическое | E17: Степин В.В. | F17: МБОУ "СОШ № 8" | G17: высшее педагогическое | H17: учитель физической культуры
A18: 5 | B18: 3 | C18: Техническое моделирование "Знай, умей, твори" | D18: техническое | E18: Зарипова Г.И. | F18: МБОУ "СОШ № 8" | G18: высшее педагогическое | H18: учитель технологии
A19: 7 | B19: 1 | C19: Летящий мяч | D19: физкультурно - спортивное | E19: Мязина Е.В. | F19: МБОУ "СОШ № 8" | G19: высшее педагогическое | H19: учитель физической культуры
A20: 8 | B20: 1 | C20: Баскетбол | D20: физкультурно - спортивное | E20: Степин В.В. | F20: МБОУ "СОШ № 8" | G20: высшее педагогическое | H20: учитель физической культуры
A21: 5 | B21: 2 | C21: Тимуровское движение "Добрые сердца" | D21: социально- педагогическое | E21: Юмакова А.С. | F21: МБОУ "СОШ № 8" | G21: высшее педагогическое | H21: учитель английского языка
A22: 7 | B22: 2 | C22: РДШ | D22: социально- педагогическое | E22: Карамова Л.И. | F22: МБОУ "СОШ № 8" | G22: высшее педагогическое | H22: учитель русского языка и литературы
A23: 9 | B23: 3 | C23: ШСП | D23: социально- педагогическое | E23: Терешева О.А. | F23: МБОУ "СОШ № 8" | G23: высшее педагогическое | H23: педагог- психолог
A24: 7 | B24: 2 | C24: Путь к успеху (педагогическая группа) | D24: социально- педагогическое | E24: Терешева О.А. | F24: МБОУ "СОШ № 8" | G24: высшее педагогическое | H24: педагог- психолог
A25: 9 | B25: 2 | C25: Подросток и закон (школьный отряд ОППН) | D25: социально- педагогическое | E25: Зайнеева С.Г. | F25: МБОУ "СОШ № 8" | G25: высшее педагогическое | H25: учитель математики
A26: 7 | B26: 2 | C26: Совет отцов | D26: социально- педагогическое | E26: Шарифуллина З.Ф. | F26: МБОУ "СОШ № 8" | G26: высшее педагогическое | H26: учитель татарского языка и литературы
A27: 8 | B27: 2 | C27: Самостоятельные дети (Республиканская антинаркотическая программа) | D27: социально- педагогическое | E27: Хусаенова Г.Х. | F27: МБОУ "СОШ № 8" | G27: высшее педагогическое | H27: учитель татарского языка и литературы
A28: 9 | B28: 2 | C28: Школа юного биолога | D28: естественно научное | E28: Савенко Л.М. | F28: МБОУ "СОШ № 8" | G28: высшее педагогическое | H28: учитель химии и биологии
A29: 11 | B29: 2 | C29: Занимательная химия | D29: естественно научное | E29: Савенко Л.М. | F29: МБОУ "СОШ № 8" | G29: высшее педагогическое | H29: учитель химии и биологии
A30: 10 | B30: 1 | C30: Школа успешного ученика (профилактическое) | D30: социально- педагогическое | E30: Колесникова Т.В. | F30: МБОУ "СОШ № 8" | G30: высшее педагогическое | H30: педагог- организатор
A31: 10 | B31: 2 | C31: Экология: вчера, сегодня, завтра | D31: социально- педагогическое | E31: Айвазьянц К.В. | F31: МБОУ "СОШ № 8" | G31: высшее педагогическое | H31: учитель географии
A32: ИТОГО | B32: 66
B34: Директор | C34: МБОУ "СОШ № 8" | D34: _________________ ФИО | E34: И.Ф. Шумакова
